[Event "Titled Tuesday Blitz February 14 Early 2023"]
[White "Prudnykova, Olga"]
[Black "Gatterer, Florian"]
[WhiteFideId "14121093"]
[BlackFideId "811688"]
[WhiteElo "2268"]
[BlackElo "2170"]
[Result "0-1"]
[Round "04"]
[TimeControl "180+2"]
[Date "2023.02.15"]
[WhiteClock "0:00:46"]
[BlackClock "0:00:54"]

1. e4 {[%clk 0:02:45]}  c6 {[%clk 0:03:00]} 2. d4 {[%clk 0:02:45]}  d5 {[%clk 0:03:01]} 3. exd5 {[%clk 0:02:46]}  cxd5 {[%clk 0:03:01]} 4. c4 {[%clk 0:02:46]}  Nf6 {[%clk 0:03:01]} 5. Nc3 {[%clk 0:02:46]}  Nc6 {[%clk 0:03:01]} 6. Nf3 {[%clk 0:02:46]}  a6 {[%clk 0:03:02]} 7. Bg5 {[%clk 0:02:37]}  Ne4 {[%clk 0:03:01]} 8. Nxd5 {[%clk 0:02:21]}  Nxg5 {[%clk 0:02:58]} 9. Nxg5 {[%clk 0:02:20]}  e6 {[%clk 0:02:59]} 10. Nxf7 {[%clk 0:02:12]}  Kxf7 {[%clk 0:02:52]} 11. Qh5+ {[%clk 0:02:11]}  Kg8 {[%clk 0:02:43]} 12. Nc3 {[%clk 0:02:04]}  Qxd4 {[%clk 0:02:30]} 13. Rd1 {[%clk 0:02:03]}  Qe5+ {[%clk 0:02:25]} 14. Qxe5 {[%clk 0:02:02]}  Nxe5 {[%clk 0:02:26]} 15. Be2 {[%clk 0:02:02]}  Be7 {[%clk 0:02:17]} 16. f4 {[%clk 0:02:01]}  Nc6 {[%clk 0:02:14]} 17. Bf3 {[%clk 0:02:01]}  g6 {[%clk 0:02:11]} 18. O-O {[%clk 0:01:54]}  Kf7 {[%clk 0:02:11]} 19. Rfe1 {[%clk 0:01:55]}  Rd8 {[%clk 0:02:08]} 20. Rxd8 {[%clk 0:01:54]}  Bxd8 {[%clk 0:02:04]} 21. Rd1 {[%clk 0:01:54]}  Be7 {[%clk 0:02:01]} 22. Ne4 {[%clk 0:01:53]}  Rb8 {[%clk 0:01:53]} 23. c5 {[%clk 0:01:42]}  e5 {[%clk 0:01:32]} 24. Nd6+ {[%clk 0:01:16]}  Bxd6 {[%clk 0:01:31]} 25. cxd6 {[%clk 0:01:15]}  Bd7 {[%clk 0:01:22]} 26. Bd5+ {[%clk 0:01:10]}  Kf6 {[%clk 0:01:18]} 27. fxe5+ {[%clk 0:00:53]}  Kxe5 {[%clk 0:01:15]} 28. Bb3 {[%clk 0:00:52]}  Rf8 {[%clk 0:00:59]} 29. h3 {[%clk 0:00:46]}  Rf4 {[%clk 0:00:55]} 30. Rd5+ {[%clk 0:00:46]}  Kf6 {[%clk 0:00:54]} 0-1


[Site "https://www.chess.com"]

[Event "Titled Tuesday Blitz February 14 Early 2023"]
[White "Llanos, Guillermo"]
[Black "Zaichenko, Daria"]
[WhiteFideId "100358"]
[BlackFideId "4197453"]
[WhiteElo "2290"]
[BlackElo "2104"]
[Result "1-0"]
[Round "04"]
[TimeControl "180+2"]
[Date "2023.02.15"]
[WhiteClock "0:00:41"]
[BlackClock "0:01:14"]

1. Nf3 {[%clk 0:02:59]}  Nf6 {[%clk 0:02:58]} 2. c4 {[%clk 0:02:58]}  e6 {[%clk 0:02:58]} 3. g3 {[%clk 0:02:56]}  d5 {[%clk 0:02:58]} 4. b3 {[%clk 0:02:55]}  Be7 {[%clk 0:02:58]} 5. Bg2 {[%clk 0:02:54]}  O-O {[%clk 0:02:58]} 6. O-O {[%clk 0:02:54]}  c5 {[%clk 0:02:59]} 7. cxd5 {[%clk 0:02:52]}  exd5 {[%clk 0:02:57]} 8. d4 {[%clk 0:02:52]}  Nc6 {[%clk 0:02:55]} 9. Bb2 {[%clk 0:02:51]}  Bf5 {[%clk 0:02:48]} 10. Nc3 {[%clk 0:02:49]}  h6 {[%clk 0:02:44]} 11. Rc1 {[%clk 0:02:47]}  Rc8 {[%clk 0:02:43]} 12. dxc5 {[%clk 0:02:36]}  Bxc5 {[%clk 0:02:42]} 13. Na4 {[%clk 0:02:31]}  Be7 {[%clk 0:02:31]} 14. Nd4 {[%clk 0:02:27]}  Bg6 {[%clk 0:02:27]} 15. Nc5 {[%clk 0:02:06]}  Qb6 {[%clk 0:02:20]} 16. Nxc6 {[%clk 0:01:59]}  bxc6 {[%clk 0:02:12]} 17. Bd4 {[%clk 0:01:56]}  Qc7 {[%clk 0:02:08]} 18. f3 {[%clk 0:01:44]}  Rfe8 {[%clk 0:02:07]} 19. e3 {[%clk 0:01:43]}  Nd7 {[%clk 0:02:04]} 20. Bh3 {[%clk 0:01:37]}  Nxc5 {[%clk 0:02:03]} 21. Bxc5 {[%clk 0:01:34]}  Bxc5 {[%clk 0:01:57]} 22. Rxc5 {[%clk 0:01:32]}  Rcd8 {[%clk 0:01:57]} 23. Qd4 {[%clk 0:01:28]}  Qb6 {[%clk 0:01:48]} 24. Rfc1 {[%clk 0:01:26]}  Rd6 {[%clk 0:01:46]} 25. Kf2 {[%clk 0:01:26]}  Qa6 {[%clk 0:01:40]} 26. a4 {[%clk 0:01:21]}  Qb6 {[%clk 0:01:37]} 27. b4 {[%clk 0:01:17]}  Rb8 {[%clk 0:01:32]} 28. b5 {[%clk 0:01:00]}  f5 {[%clk 0:01:21]} 29. Rxc6 {[%clk 0:00:51]}  Rxc6 {[%clk 0:01:18]} 30. Rxc6 {[%clk 0:00:50]}  Qa5 {[%clk 0:01:14]} 31. Rxg6 {[%clk 0:00:46]}  Rc8 {[%clk 0:01:14]} 32. Qxg7# {[%clk 0:00:41]} 1-0


[Site "https://www.chess.com"]

[Event "Titled Tuesday Blitz February 14 Early 2023"]
[White "Wilson, Elvin"]
[Black "De Souza, Cristiano Gomes"]
[WhiteFideId "2014874"]
[BlackFideId "2151758"]
[WhiteElo "2183"]
[BlackElo "2018"]
[Result "0-1"]
[Round "04"]
[TimeControl "180+2"]
[Date "2023.02.15"]
[WhiteClock "0:00:02"]
[BlackClock "0:01:27"]

1. c4 {[%clk 0:03:00]}  Nf6 {[%clk 0:02:59]} 2. g3 {[%clk 0:02:58]}  g6 {[%clk 0:02:59]} 3. Bg2 {[%clk 0:02:58]}  Bg7 {[%clk 0:03:00]} 4. Nc3 {[%clk 0:02:57]}  O-O {[%clk 0:03:00]} 5. e4 {[%clk 0:02:58]}  d6 {[%clk 0:03:00]} 6. Nge2 {[%clk 0:02:58]}  Nc6 {[%clk 0:03:00]} 7. O-O {[%clk 0:02:58]}  e5 {[%clk 0:03:00]} 8. d3 {[%clk 0:02:58]}  Nd7 {[%clk 0:02:58]} 9. Be3 {[%clk 0:02:57]}  Nc5 {[%clk 0:02:57]} 10. f4 {[%clk 0:02:45]}  Ne6 {[%clk 0:02:56]} 11. f5 {[%clk 0:02:39]}  Ned4 {[%clk 0:02:56]} 12. g4 {[%clk 0:02:39]}  Nxe2+ {[%clk 0:02:49]} 13. Nxe2 {[%clk 0:02:38]}  Nd4 {[%clk 0:02:49]} 14. Ng3 {[%clk 0:02:30]}  c5 {[%clk 0:02:38]} 15. g5 {[%clk 0:02:24]}  f6 {[%clk 0:02:36]} 16. h4 {[%clk 0:02:23]}  Bd7 {[%clk 0:02:30]} 17. h5 {[%clk 0:02:07]}  fxg5 {[%clk 0:02:27]} 18. hxg6 {[%clk 0:02:07]}  hxg6 {[%clk 0:02:24]} 19. fxg6 {[%clk 0:02:05]}  g4 {[%clk 0:02:20]} 20. Nf5 {[%clk 0:01:58]}  Bxf5 {[%clk 0:01:54]} 21. exf5 {[%clk 0:01:56]}  Qh4 {[%clk 0:01:45]} 22. Rf2 {[%clk 0:00:34]}  g3 {[%clk 0:01:41]} 23. Bd5+ {[%clk 0:00:33]}  Kh8 {[%clk 0:01:37]} 24. Rg2 {[%clk 0:00:31]}  Nxf5 {[%clk 0:01:32]} 25. Qe2 {[%clk 0:00:22]}  e4 {[%clk 0:01:28]} 26. dxe4 {[%clk 0:00:02]}  Nxe3 {[%clk 0:01:27]} 0-1


[Site "https://www.chess.com"]

[Event "Titled Tuesday Blitz February 14 Early 2023"]
[White "Jimenez, Joaquin"]
[Black "Hartikainen, Jarmo"]
[WhiteFideId "109860"]
[BlackFideId "503134"]
[WhiteElo "2195"]
[BlackElo "2108"]
[Result "1-0"]
[Round "04"]
[TimeControl "180+2"]
[Date "2023.02.15"]
[WhiteClock "0:00:50"]
[BlackClock "0:00:06"]

1. e4 {[%clk 0:03:00]}  c5 {[%clk 0:02:59]} 2. Nf3 {[%clk 0:02:59]}  e6 {[%clk 0:02:59]} 3. d4 {[%clk 0:02:59]}  cxd4 {[%clk 0:03:00]} 4. Nxd4 {[%clk 0:03:00]}  Nf6 {[%clk 0:02:59]} 5. Nc3 {[%clk 0:02:59]}  d6 {[%clk 0:03:00]} 6. g4 {[%clk 0:02:58]}  d5 {[%clk 0:02:54]} 7. exd5 {[%clk 0:02:56]}  Nxd5 {[%clk 0:02:53]} 8. Nxd5 {[%clk 0:02:48]}  Qxd5 {[%clk 0:02:53]} 9. Rg1 {[%clk 0:02:49]}  Nc6 {[%clk 0:02:49]} 10. Be3 {[%clk 0:02:47]}  Bc5 {[%clk 0:02:33]} 11. Bg2 {[%clk 0:02:36]}  Qe5 {[%clk 0:02:06]} 12. Nxc6 {[%clk 0:02:25]}  bxc6 {[%clk 0:01:58]} 13. Bxc6+ {[%clk 0:02:22]}  Ke7 {[%clk 0:01:55]} 14. Qe2 {[%clk 0:01:52]}  Ba6 {[%clk 0:01:38]} 15. Bxc5+ {[%clk 0:01:34]}  Qxc5 {[%clk 0:01:32]} 16. Qxa6 {[%clk 0:01:35]}  Qe5+ {[%clk 0:00:35]} 17. Kf1 {[%clk 0:01:26]}  Qxb2 {[%clk 0:00:29]} 18. Qb7+ {[%clk 0:01:24]}  Qxb7 {[%clk 0:00:27]} 19. Bxb7 {[%clk 0:01:22]}  Rab8 {[%clk 0:00:27]} 20. Be4 {[%clk 0:01:23]}  g6 {[%clk 0:00:23]} 21. Bd3 {[%clk 0:01:21]}  Rhd8 {[%clk 0:00:19]} 22. Ke2 {[%clk 0:01:18]}  f5 {[%clk 0:00:18]} 23. gxf5 {[%clk 0:01:17]}  exf5 {[%clk 0:00:18]} 24. Rab1 {[%clk 0:01:17]}  Kf6 {[%clk 0:00:18]} 25. Rxb8 {[%clk 0:01:15]}  Rxb8 {[%clk 0:00:19]} 26. Kd2 {[%clk 0:01:09]}  Rb2 {[%clk 0:00:18]} 27. Ra1 {[%clk 0:01:02]}  g5 {[%clk 0:00:18]} 28. a4 {[%clk 0:01:02]}  a5 {[%clk 0:00:16]} 29. Bc4 {[%clk 0:00:57]}  Rb6 {[%clk 0:00:15]} 30. Kc3 {[%clk 0:00:55]}  h5 {[%clk 0:00:15]} 31. Rd1 {[%clk 0:00:53]}  g4 {[%clk 0:00:14]} 32. Rd5 {[%clk 0:00:52]}  h4 {[%clk 0:00:13]} 33. Bd3 {[%clk 0:00:50]}  Rc6+ {[%clk 0:00:10]} 34. Kd2 {[%clk 0:00:50]}  f4 {[%clk 0:00:05]} 35. Rf5+ {[%clk 0:00:50]}  Ke6 {[%clk 0:00:06]} 36. Rxf4 {[%clk 0:00:50]} 1-0


[Site "https://www.chess.com"]

[Event "Titled Tuesday Blitz February 14 Early 2023"]
[White "Ruge, Edison"]
[Black "Balint, Vilmos"]
[WhiteFideId "4401000"]
[BlackFideId "718050"]
[WhiteElo "2201"]
[BlackElo "2169"]
[Result "1-0"]
[Round "04"]
[TimeControl "180+2"]
[Date "2023.02.15"]
[WhiteClock "0:00:33"]
[BlackClock "0:02:00"]

1. e4 {[%clk 0:01:36]}  e6 {[%clk 0:02:58]} 2. d3 {[%clk 0:01:36]}  d5 {[%clk 0:02:59]} 3. Nd2 {[%clk 0:01:36]}  Nf6 {[%clk 0:02:59]} 4. Ngf3 {[%clk 0:01:36]}  c5 {[%clk 0:02:59]} 5. g3 {[%clk 0:01:36]}  Nc6 {[%clk 0:02:59]} 6. Bg2 {[%clk 0:01:36]}  b6 {[%clk 0:02:59]} 7. O-O {[%clk 0:01:36]}  Bb7 {[%clk 0:02:59]} 8. e5 {[%clk 0:01:33]}  Nd7 {[%clk 0:02:58]} 9. Re1 {[%clk 0:01:33]}  Qc7 {[%clk 0:02:58]} 10. Qe2 {[%clk 0:01:33]}  Be7 {[%clk 0:02:57]} 11. h4 {[%clk 0:01:31]}  h6 {[%clk 0:02:54]} 12. h5 {[%clk 0:01:30]}  g6 {[%clk 0:02:54]} 13. hxg6 {[%clk 0:01:28]}  fxg6 {[%clk 0:02:55]} 14. Bh3 {[%clk 0:01:27]}  Nf8 {[%clk 0:02:55]} 15. c3 {[%clk 0:01:24]}  O-O-O {[%clk 0:02:50]} 16. a4 {[%clk 0:01:23]}  a5 {[%clk 0:02:47]} 17. d4 {[%clk 0:01:18]}  g5 {[%clk 0:02:41]} 18. dxc5 {[%clk 0:01:11]}  Bxc5 {[%clk 0:02:40]} 19. Nb3 {[%clk 0:01:10]}  Be7 {[%clk 0:02:38]} 20. Nbd4 {[%clk 0:01:06]}  Nxd4 {[%clk 0:02:34]} 21. cxd4 {[%clk 0:01:00]}  Kb8 {[%clk 0:02:34]} 22. Be3 {[%clk 0:00:58]}  Qc4 {[%clk 0:02:33]} 23. Qd1 {[%clk 0:00:50]}  Ba6 {[%clk 0:02:18]} 24. Bf1 {[%clk 0:00:49]}  Qc8 {[%clk 0:02:10]} 25. Rc1 {[%clk 0:00:46]}  Qb7 {[%clk 0:02:10]} 26. Bxa6 {[%clk 0:00:43]}  Qxa6 {[%clk 0:02:10]} 27. Rc6 {[%clk 0:00:43]}  Rc8 {[%clk 0:02:04]} 28. Qc2 {[%clk 0:00:37]}  Rxc6 {[%clk 0:02:01]} 29. Qxc6 {[%clk 0:00:37]}  Qb7 {[%clk 0:02:01]} 30. Qe8+ {[%clk 0:00:36]}  Qc8 {[%clk 0:02:00]} 31. Qxe7 {[%clk 0:00:33]} 1-0


[Site "https://www.chess.com"]

[Event "Titled Tuesday Blitz February 14 Early 2023"]
[White "Escalona Landi, Samid Eduardo"]
[Black "Kuchava, Ana"]
[WhiteFideId "3937437"]
[BlackFideId "13605348"]
[WhiteElo "2218"]
[BlackElo "2101"]
[Result "1-0"]
[Round "04"]
[TimeControl "180+2"]
[Date "2023.02.15"]
[WhiteClock "0:00:35"]
[BlackClock "0:00:03"]

1. e4 {[%clk 0:03:00]}  c5 {[%clk 0:02:58]} 2. Nf3 {[%clk 0:02:57]}  d6 {[%clk 0:02:57]} 3. d4 {[%clk 0:02:57]}  cxd4 {[%clk 0:02:58]} 4. Nxd4 {[%clk 0:02:58]}  Nf6 {[%clk 0:02:58]} 5. Nc3 {[%clk 0:02:59]}  Nc6 {[%clk 0:02:58]} 6. Bg5 {[%clk 0:02:58]}  e6 {[%clk 0:02:55]} 7. Qd2 {[%clk 0:02:58]}  Qb6 {[%clk 0:02:47]} 8. Nb3 {[%clk 0:02:45]}  Be7 {[%clk 0:02:44]} 9. O-O-O {[%clk 0:02:43]}  O-O {[%clk 0:02:43]} 10. f4 {[%clk 0:02:38]}  Rd8 {[%clk 0:02:39]} 11. Bd3 {[%clk 0:02:30]}  a6 {[%clk 0:02:36]} 12. Kb1 {[%clk 0:02:26]}  Qc7 {[%clk 0:02:03]} 13. g4 {[%clk 0:02:24]}  b5 {[%clk 0:01:59]} 14. Bxf6 {[%clk 0:02:13]}  Bxf6 {[%clk 0:01:53]} 15. g5 {[%clk 0:02:14]}  Bxc3 {[%clk 0:01:19]} 16. Qxc3 {[%clk 0:02:14]}  Bb7 {[%clk 0:01:19]} 17. h4 {[%clk 0:02:12]}  Rac8 {[%clk 0:01:18]} 18. h5 {[%clk 0:02:10]}  b4 {[%clk 0:01:17]} 19. Qd2 {[%clk 0:02:09]}  a5 {[%clk 0:01:10]} 20. g6 {[%clk 0:01:53]}  fxg6 {[%clk 0:01:07]} 21. hxg6 {[%clk 0:01:53]}  h6 {[%clk 0:01:07]} 22. Bc4 {[%clk 0:01:49]}  Qe7 {[%clk 0:00:57]} 23. f5 {[%clk 0:01:47]}  d5 {[%clk 0:00:25]} 24. exd5 {[%clk 0:01:47]}  Ne5 {[%clk 0:00:20]} 25. Be2 {[%clk 0:00:55]}  Rxd5 {[%clk 0:00:18]} 26. Qf4 {[%clk 0:00:45]}  Rxd1+ {[%clk 0:00:17]} 27. Rxd1 {[%clk 0:00:46]}  Qc7 {[%clk 0:00:14]} 28. Nd4 {[%clk 0:00:39]}  Nc6 {[%clk 0:00:03]} 29. Qxc7 {[%clk 0:00:37]}  Rxc7 {[%clk 0:00:04]} 30. Nxe6 {[%clk 0:00:37]}  Rc8 {[%clk 0:00:03]} 31. Rd7 {[%clk 0:00:35]} 1-0


[Site "https://www.chess.com"]

[Event "Titled Tuesday Blitz February 14 Early 2023"]
[White "Pasti, Aron"]
[Black "Orujov, Elshad"]
[WhiteFideId "785857"]
[BlackFideId "13403540"]
[WhiteElo "2361"]
[BlackElo "2304"]
[Result "1-0"]
[Round "04"]
[TimeControl "180+2"]
[Date "2023.02.15"]
[WhiteClock "0:00:11"]
[BlackClock "0:00:02"]

1. e4 {[%clk 0:02:58]}  c5 {[%clk 0:02:59]} 2. Nf3 {[%clk 0:02:57]}  d6 {[%clk 0:02:59]} 3. d4 {[%clk 0:02:57]}  cxd4 {[%clk 0:03:00]} 4. Nxd4 {[%clk 0:02:58]}  Nf6 {[%clk 0:03:01]} 5. Nc3 {[%clk 0:02:58]}  a6 {[%clk 0:03:01]} 6. h3 {[%clk 0:02:55]}  e5 {[%clk 0:02:58]} 7. Nde2 {[%clk 0:02:53]}  h5 {[%clk 0:02:58]} 8. g3 {[%clk 0:02:54]}  Be6 {[%clk 0:02:57]} 9. Bg2 {[%clk 0:02:54]}  Be7 {[%clk 0:02:58]} 10. O-O {[%clk 0:02:54]}  O-O {[%clk 0:02:57]} 11. Be3 {[%clk 0:02:54]}  Nbd7 {[%clk 0:02:57]} 12. a4 {[%clk 0:02:53]}  Rc8 {[%clk 0:02:56]} 13. Nd5 {[%clk 0:02:50]}  Nc5 {[%clk 0:02:38]} 14. Nec3 {[%clk 0:02:39]}  Bxd5 {[%clk 0:02:11]} 15. exd5 {[%clk 0:02:38]}  h4 {[%clk 0:02:05]} 16. g4 {[%clk 0:02:38]}  a5 {[%clk 0:02:00]} 17. f4 {[%clk 0:02:38]}  exf4 {[%clk 0:02:00]} 18. Bxf4 {[%clk 0:02:39]}  Nfd7 {[%clk 0:02:00]} 19. Ne4 {[%clk 0:02:37]}  Nxe4 {[%clk 0:01:52]} 20. Bxe4 {[%clk 0:02:38]}  Ne5 {[%clk 0:01:40]} 21. c3 {[%clk 0:02:33]}  Bg5 {[%clk 0:01:38]} 22. Bxe5 {[%clk 0:02:30]}  dxe5 {[%clk 0:01:37]} 23. d6 {[%clk 0:02:27]}  Qb6+ {[%clk 0:01:36]} 24. Kh1 {[%clk 0:02:23]}  Qxb2 {[%clk 0:01:33]} 25. Rb1 {[%clk 0:02:14]}  Qxc3 {[%clk 0:01:30]} 26. Rf3 {[%clk 0:02:14]}  Qc4 {[%clk 0:01:15]} 27. Bd5 {[%clk 0:02:14]}  Qc5 {[%clk 0:00:49]} 28. Rxb7 {[%clk 0:02:09]}  Bf4 {[%clk 0:00:49]} 29. d7 {[%clk 0:01:41]}  Rcd8 {[%clk 0:00:44]} 30. Be4 {[%clk 0:01:40]}  g6 {[%clk 0:00:40]} 31. Qc2 {[%clk 0:01:30]}  Qd6 {[%clk 0:00:31]} 32. Rd3 {[%clk 0:01:16]}  Qa6 {[%clk 0:00:27]} 33. Rd1 {[%clk 0:01:11]}  Kg7 {[%clk 0:00:23]} 34. Qd3 {[%clk 0:01:11]}  Qe6 {[%clk 0:00:20]} 35. Qc3 {[%clk 0:01:05]}  f5 {[%clk 0:00:18]} 36. gxf5 {[%clk 0:01:03]}  gxf5 {[%clk 0:00:19]} 37. Bd5 {[%clk 0:00:59]}  Qa6 {[%clk 0:00:16]} 38. Qf3 {[%clk 0:00:51]}  Kh7 {[%clk 0:00:09]} 39. Bc6 {[%clk 0:00:40]}  Rf6 {[%clk 0:00:05]} 40. Qh5+ {[%clk 0:00:39]}  Bh6 {[%clk 0:00:05]} 41. Bg2 {[%clk 0:00:36]}  Rd6 {[%clk 0:00:04]} 42. Qxf5+ {[%clk 0:00:35]}  Kg7 {[%clk 0:00:04]} 43. Qxe5+ {[%clk 0:00:34]}  Rf6 {[%clk 0:00:04]} 44. Rc7 {[%clk 0:00:20]}  Qb6 {[%clk 0:00:03]} 45. Rc6 {[%clk 0:00:20]}  Qf2 {[%clk 0:00:03]} 46. Qe7+ {[%clk 0:00:16]}  Kg6 {[%clk 0:00:02]} 47. Be4+ {[%clk 0:00:16]}  Kg5 {[%clk 0:00:02]} 48. Rg1+ {[%clk 0:00:15]}  Kh5 {[%clk 0:00:01]} 49. Qxf6 {[%clk 0:00:11]}  Qe3 {[%clk 0:00:02]} 50. Bf3+ {[%clk 0:00:11]} 1-0


[Site "https://www.chess.com"]

[Event "Titled Tuesday Blitz February 14 Early 2023"]
[White "Valle Maytin, Luis Enrique"]
[Black "EdmundPlayer"]
[WhiteFideId "3503666"]
[WhiteElo "2241"]
[BlackElo "2246"]
[Result "1-0"]
[Round "04"]
[TimeControl "180+2"]
[Date "2023.02.15"]
[WhiteClock "0:00:10"]
[BlackClock "0:00:01"]

1. e4 {[%clk 0:03:00]}  e6 {[%clk 0:02:59]} 2. d4 {[%clk 0:03:00]}  d5 {[%clk 0:02:59]} 3. exd5 {[%clk 0:03:01]}  exd5 {[%clk 0:02:59]} 4. Nf3 {[%clk 0:03:02]}  Bd6 {[%clk 0:02:59]} 5. Bd3 {[%clk 0:03:03]}  Nc6 {[%clk 0:02:57]} 6. Qe2+ {[%clk 0:03:02]}  Nge7 {[%clk 0:02:53]} 7. O-O {[%clk 0:03:00]}  Bg4 {[%clk 0:02:53]} 8. c3 {[%clk 0:02:58]}  Qd7 {[%clk 0:02:51]} 9. h3 {[%clk 0:02:58]}  Bf5 {[%clk 0:02:46]} 10. Bb5 {[%clk 0:02:54]}  f6 {[%clk 0:02:43]} 11. c4 {[%clk 0:02:51]}  dxc4 {[%clk 0:02:19]} 12. d5 {[%clk 0:02:50]}  Bd3 {[%clk 0:02:13]} 13. Qe3 {[%clk 0:02:29]}  O-O {[%clk 0:01:54]} 14. dxc6 {[%clk 0:02:27]}  bxc6 {[%clk 0:01:55]} 15. Ba4 {[%clk 0:02:20]}  Nd5 {[%clk 0:01:37]} 16. Qd4 {[%clk 0:02:19]}  Nb6 {[%clk 0:01:28]} 17. Nc3 {[%clk 0:01:56]}  Bxf1 {[%clk 0:01:10]} 18. Kxf1 {[%clk 0:01:54]}  Nxa4 {[%clk 0:00:58]} 19. Nxa4 {[%clk 0:01:54]}  Rfe8 {[%clk 0:00:42]} 20. Qxc4+ {[%clk 0:01:47]}  Kh8 {[%clk 0:00:41]} 21. Be3 {[%clk 0:01:46]}  Rab8 {[%clk 0:00:24]} 22. b3 {[%clk 0:01:35]}  Rb4 {[%clk 0:00:23]} 23. Qd3 {[%clk 0:01:32]}  Qf7 {[%clk 0:00:15]} 24. Rd1 {[%clk 0:01:28]}  a5 {[%clk 0:00:13]} 25. Bd2 {[%clk 0:01:11]}  Rbe4 {[%clk 0:00:07]} 26. Nc3 {[%clk 0:01:01]}  R4e7 {[%clk 0:00:04]} 27. Be3 {[%clk 0:00:59]}  Bb4 {[%clk 0:00:03]} 28. Ne2 {[%clk 0:00:48]}  Re6 {[%clk 0:00:03]} 29. Nf4 {[%clk 0:00:26]}  Rd6 {[%clk 0:00:03]} 30. Qc2 {[%clk 0:00:26]}  Red8 {[%clk 0:00:03]} 31. Rxd6 {[%clk 0:00:26]}  Rxd6 {[%clk 0:00:04]} 32. Nd3 {[%clk 0:00:23]}  Qd7 {[%clk 0:00:04]} 33. Ke2 {[%clk 0:00:15]}  c5 {[%clk 0:00:03]} 34. Qc4 {[%clk 0:00:13]}  Rd5 {[%clk 0:00:03]} 35. a4 {[%clk 0:00:12]}  Qc6 {[%clk 0:00:02]} 36. Nd2 {[%clk 0:00:10]}  Qd7 {[%clk 0:00:01]} 37. Ne4 {[%clk 0:00:09]}  f5 {[%clk 0:00:01]} 38. Nexc5 {[%clk 0:00:09]}  Bxc5 {[%clk 0:00:02]} 39. Nxc5 {[%clk 0:00:09]}  Qd8 {[%clk 0:00:01]} 40. Nd3 {[%clk 0:00:09]}  Rd6 {[%clk 0:00:01]} 41. g3 {[%clk 0:00:09]}  Rd7 {[%clk 0:00:01]} 42. Nf4 {[%clk 0:00:09]}  Re7 {[%clk 0:00:01]} 43. Kf3 {[%clk 0:00:10]}  Qd7 {[%clk 0:00:01]} 44. Kg2 {[%clk 0:00:10]}  Qd6 {[%clk 0:00:01]} 45. Qd5 {[%clk 0:00:10]}  Qb6 {[%clk 0:00:01]} 46. Qf3 {[%clk 0:00:10]} 1-0


[Site "https://www.chess.com"]

[Event "Titled Tuesday Blitz February 14 Early 2023"]
[White "Papp, Petra"]
[Black "Mendez Machado, Andre"]
[WhiteFideId "739049"]
[BlackFideId "6603793"]
[WhiteElo "2343"]
[BlackElo "1974"]
[Result "0-1"]
[Round "04"]
[TimeControl "180+2"]
[Date "2023.02.15"]
[WhiteClock "0:00:25"]
[BlackClock "0:00:08"]

1. e4 {[%clk 0:02:52]}  e5 {[%clk 0:02:59]} 2. Nf3 {[%clk 0:02:52]}  Nc6 {[%clk 0:02:59]} 3. d4 {[%clk 0:02:52]}  exd4 {[%clk 0:02:59]} 4. Nxd4 {[%clk 0:02:53]}  Bc5 {[%clk 0:02:59]} 5. Nb3 {[%clk 0:02:53]}  Bb6 {[%clk 0:02:59]} 6. Nc3 {[%clk 0:02:53]}  Nf6 {[%clk 0:02:58]} 7. Qe2 {[%clk 0:02:53]}  O-O {[%clk 0:02:56]} 8. Bg5 {[%clk 0:02:53]}  h6 {[%clk 0:02:46]} 9. Bh4 {[%clk 0:02:52]}  a5 {[%clk 0:02:14]} 10. a4 {[%clk 0:02:51]}  Nb4 {[%clk 0:02:10]} 11. O-O-O {[%clk 0:02:50]}  Qe7 {[%clk 0:02:00]} 12. f3 {[%clk 0:02:49]}  d6 {[%clk 0:01:52]} 13. g4 {[%clk 0:02:46]}  Be6 {[%clk 0:01:48]} 14. Bf2 {[%clk 0:02:44]}  Bxb3 {[%clk 0:01:42]} 15. cxb3 {[%clk 0:02:44]}  Nd7 {[%clk 0:01:38]} 16. Bxb6 {[%clk 0:02:32]}  cxb6 {[%clk 0:01:35]} 17. Kb1 {[%clk 0:02:30]}  Nc5 {[%clk 0:01:33]} 18. Qc4 {[%clk 0:02:23]}  Rac8 {[%clk 0:01:30]} 19. Nd5 {[%clk 0:02:17]}  Qe5 {[%clk 0:01:19]} 20. Nxb4 {[%clk 0:02:10]}  axb4 {[%clk 0:00:54]} 21. Qxb4 {[%clk 0:02:09]}  Qf4 {[%clk 0:00:46]} 22. Be2 {[%clk 0:02:02]}  Qe3 {[%clk 0:00:44]} 23. Rhe1 {[%clk 0:02:01]}  Nxb3 {[%clk 0:00:42]} 24. Bc4 {[%clk 0:01:56]}  Rxc4 {[%clk 0:00:34]} 25. Qxc4 {[%clk 0:01:56]}  Nd2+ {[%clk 0:00:33]} 26. Rxd2 {[%clk 0:01:52]}  Qxd2 {[%clk 0:00:23]} 27. Re2 {[%clk 0:01:47]}  Qd1+ {[%clk 0:00:22]} 28. Ka2 {[%clk 0:01:47]}  Ra8 {[%clk 0:00:21]} 29. b3 {[%clk 0:01:44]}  Kh7 {[%clk 0:00:15]} 30. e5 {[%clk 0:01:37]}  Ra5 {[%clk 0:00:12]} 31. Qe4+ {[%clk 0:01:00]}  g6 {[%clk 0:00:12]} 32. e6 {[%clk 0:01:00]}  Re5 {[%clk 0:00:11]} 33. exf7 {[%clk 0:00:44]}  Rxe4 {[%clk 0:00:11]} 34. Rxe4 {[%clk 0:00:45]}  Kg7 {[%clk 0:00:11]} 35. Re7 {[%clk 0:00:41]}  Kf8 {[%clk 0:00:10]} 36. Rxb7 {[%clk 0:00:41]}  Qxf3 {[%clk 0:00:10]} 37. Rd7 {[%clk 0:00:40]}  Qxg4 {[%clk 0:00:09]} 38. Rxd6 {[%clk 0:00:39]}  Kxf7 {[%clk 0:00:09]} 39. Rxb6 {[%clk 0:00:39]}  Qg2+ {[%clk 0:00:09]} 40. Ka3 {[%clk 0:00:38]}  Qxh2 {[%clk 0:00:10]} 41. a5 {[%clk 0:00:39]}  Qe5 {[%clk 0:00:08]} 42. b4 {[%clk 0:00:36]}  Qc3+ {[%clk 0:00:07]} 43. Ka4 {[%clk 0:00:36]}  Qc2+ {[%clk 0:00:07]} 44. Kb5 {[%clk 0:00:36]}  h5 {[%clk 0:00:08]} 45. a6 {[%clk 0:00:37]}  Qd3+ {[%clk 0:00:08]} 46. Ka5 {[%clk 0:00:37]}  Qa3+ {[%clk 0:00:08]} 47. Kb5 {[%clk 0:00:37]}  h4 {[%clk 0:00:09]} 48. Rb7+ {[%clk 0:00:36]}  Kf6 {[%clk 0:00:09]} 49. a7 {[%clk 0:00:37]}  h3 {[%clk 0:00:09]} 50. Rh7 {[%clk 0:00:36]}  g5 {[%clk 0:00:08]} 51. Kc6 {[%clk 0:00:32]}  Qa4+ {[%clk 0:00:07]} 52. b5 {[%clk 0:00:32]}  g4 {[%clk 0:00:07]} 53. Kc5 {[%clk 0:00:31]}  Qa3+ {[%clk 0:00:07]} 54. Kc6 {[%clk 0:00:30]}  Qa4 {[%clk 0:00:06]} 55. Kc5 {[%clk 0:00:29]}  h2 {[%clk 0:00:07]} 56. b6 {[%clk 0:00:28]}  Qa5+ {[%clk 0:00:07]} 57. Kc6 {[%clk 0:00:28]}  Qa4+ {[%clk 0:00:06]} 58. Kb7 {[%clk 0:00:28]}  Qe4+ {[%clk 0:00:06]} 59. Ka6 {[%clk 0:00:27]}  Qxh7 {[%clk 0:00:05]} 60. b7 {[%clk 0:00:27]}  h1=Q {[%clk 0:00:06]} 61. a8=Q {[%clk 0:00:26]}  Qa1+ {[%clk 0:00:06]} 62. Kb6 {[%clk 0:00:26]}  Qhb1+ {[%clk 0:00:05]} 63. Kc7 {[%clk 0:00:26]}  Qc3+ {[%clk 0:00:06]} 64. Kd8 {[%clk 0:00:26]}  Qbd3+ {[%clk 0:00:07]} 65. Ke8 {[%clk 0:00:25]}  Qe5+ {[%clk 0:00:07]} 66. Kf8 {[%clk 0:00:25]}  Qdd6+ {[%clk 0:00:07]} 67. Kg8 {[%clk 0:00:25]}  Qg5+ {[%clk 0:00:07]} 68. Kh8 {[%clk 0:00:25]}  Qg7# {[%clk 0:00:08]} 0-1


[Site "https://www.chess.com"]